Workbook

Sheet Ellipse
B1: Contours of the Area Function
B2: for an Ellipse
B4: This DIGMath module lets you investigate
C5: the contour diagrams
B6: of the area function A =p a b
B7: for an ellipse with semiaxes a and b.
A11: Three contours shown correspond to A = 10, A = 30, and A = 50.
A13: Select another value ( 0 to 50) for A = | E13: =G13 -> 39 | G13: 39
J14: Trace along the contours at a0 = | N14: =L15/10 -> 3.1
L15: 31 | M15: =a+L15*(b-a)/100 -> -1.52
B16: The interval used is from a = 0 to a = 10.
J18: At the tracing point a0 = | M18: =x0 -> 3.1
A19: Click each item below for suggestions and investigations
B20: Item 1 | J20: the value of y on the contour with A = 10 is | P20: =Sheet2!B11 -> 1.03
B21: Item 2 | J21: the value of y on the contour with A = 30 is | P21: =Sheet2!B24 -> 3.08
B22: Item 3 | J22: the value of y on the contour with A = 50 is | P22: =Sheet2!B34 -> 5.13
B23: Item 4 | J23: =" the value of y on the contour with A = "&TEXT(D,"#")&" is" -> the value of y on the contour with A = 39 is | P23: =Sheet2!B44 -> 4.00
A27: To access/download all the DIGMath Apps for Calculus
A28: Click this link: | C28: DIGMath for Calculus
A30: Created by: Sheldon P. Gordon
A31: Farmingdale State College
A32: Development of this module was supported by the
A33: NSF's Division of Undergraduate Education
A34: under grants DUE-0310123 and DUE-0442160.

Sheet Sheet2
A1: a = | B1: -4
A2: b = | B2: 4
A6: A = 10
A7: 0.1 | B7: =10/A7/PI() -> 31.83098862
A8: 5 | B8: =10/A8/PI() -> 0.6366197724
A9: 10 | B9: 0.3183098862
A11: =x0 -> 3.1 | B11: 1.026806084
A12: =x0 -> 3.1 | B12: 1.026806084
A14: =x0 -> 3.1 | B14: 1.026806084
A16: A =30
A17: 0.1 | B17: =30/A17/PI() -> 95.49
A18: 5 | B18: =30/A18/PI() -> 1.91
A19: 10 | B19: 0.95
A21: =x0 -> 3.1 | B21: 3.08
A22: =x0+0.2 -> 3.3 | B22: 2.89
A24: =x0 -> 3.1 | B24: 3.08
A26: A = 50
A27: 0.1 | B27: =50/A27/PI() -> 159.15
A28: 5 | B28: =50/A28/PI() -> 3.18
A29: 10 | B29: 1.59
A31: =x0 -> 3.1 | B31: 5.13
A32: =A31 -> 3.1 | B32: 5.13
A34: =x0 -> 3.1 | B34: 5.13
A36: ="A ="&TEXT(D,"#.#") -> A =39.
A37: 0.1 | B37: =D/A37/PI() -> 124.14
A38: 5 | B38: =D/A38/PI() -> 2.48
A39: 10 | B39: =D/A39/PI() -> 1.24
A41: =x0 -> 3.1 | B41: =D/A41/PI() -> 4.00
A42: =A41 -> 3.1 | B42: =D/A42/PI() -> 4.00
A44: =x0 -> 3.1 | B44: =D/A44/PI() -> 4.00
